﻿Department,Entity,Date,ExpenseType,ExpenseArea,Supplier,PaymentNumber,InvoiceDistributionAmount,InvoiceDescription,SupplierPostCode,ExpenditureType
FOOD STANDARDS AGENCY - Westminster,FOOD STANDARDS AGENCY - Westminster,2022-01-04,EXP - PURCHASE OF GOODS/SERVICES - ACCOMM & BLDNG MGMT - SHARED SITE RECHARGE,SECURITY & ESTATES,GOVERNMENT PROPERTY AGENCY,1011717726,77,Clive House Property Charges plus credit note,EH3 8EG,Admin
FOOD STANDARDS AGENCY - Westminster,FOOD STANDARDS AGENCY - Westminster,2022-01-04,EXP - PURCHASE OF GOODS/SERVICES - ACCOMM & BLDNG MGMT - SHARED SITE RECHARGE,SECURITY & ESTATES,GOVERNMENT PROPERTY AGENCY,1011717726,445022,SOP1-859142-901256-174079-CLIVE HOUSE PROPERTY CHARGE,EH3 8EG,Admin
FOOD STANDARDS AGENCY - Westminster,FOOD STANDARDS AGENCY - Westminster,2022-01-04,EXP - PURCHASE OF GOODS/SERVICES - ACCOMM & BLDNG MGMT - SHARED SITE RECHARGE,SECURITY & ESTATES,GOVERNMENT PROPERTY AGENCY,1011717726,-424,SOP1-859142-901256-174079-CLIVE HOUSE PROPERTY CHARGE CREDIT NOTE,EH3 8EG,Admin
FOOD STANDARDS AGENCY - Westminster,FOOD STANDARDS AGENCY - Westminster,2022-01-05,EXP - PURCHASE OF GOODS/SERVICES - TRAINING & DEVELOPMENT,PEOPLE & ORGANISATIONAL CHANGE,CABINET OFFICE,2011700168,31500,"Beyond Boundaries Programme for FSA; 10 participants @ £4,500pp",SW1A 2AS,Admin
FOOD STANDARDS AGENCY - Westminster,FOOD STANDARDS AGENCY - Westminster,2022-01-10,EXP - PURCHASE OF GOODS/SERVICES - SHARED SERV OUTSRCG- CIVIL SERV PENSION ADMIN,FINANCE,LONDON PENSIONS FUND AUTHORITY,1011717748,125000,SOP1-861251-173305-174097-LPFA ERS DEC 21,EC3N 4LP,Admin
FOOD STANDARDS AGENCY - Westminster,FOOD STANDARDS AGENCY - Westminster,2022-01-11,EXP - PURCHASE OF GOODS/SERVICES - ACCOMM & BLDNG MGMT - SHARED SITE RECHARGE,SECURITY & ESTATES,MONTAGU EVANS LLP,1011717762,840616,SOP1-861659-901535-174079-RENTAL FOSS HOUSE,EH3 8EG,Admin
FOOD STANDARDS AGENCY - Westminster,FOOD STANDARDS AGENCY - Westminster,2022-01-11,EXP - PURCHASE OF GOODS/SERVICES - OTHER - PROGRAMME EXPENDITURE,RISK ASSESSMENT - RESEARCH AND DEVELOPMENT,C E F A S,2011700171,93750,FAO Reference Centre for Bivalve Molluscs Sanitation - need to change cost centre code - Redacted under Section 40 FOI Act,NR33 0HT,Admin
FOOD STANDARDS AGENCY - Westminster,FOOD STANDARDS AGENCY - Westminster,2022-01-11,EXP - PURCHASE OF GOODS/SERVICES - OTHER - PROGRAMME EXPENDITURE,REGULATORY DELIVERY,C E F A S,2011700171,13136,Shellfish Phytoplankton analysis official controls,NR33 0HT,Admin
FOOD STANDARDS AGENCY - Westminster,FOOD STANDARDS AGENCY - Westminster,2022-01-12,EXP - PURCHASE OF GOODS/SERVICES - OTHER - PROGRAMME EXPENDITURE,REGULATORY & INTERNATIONAL,GLASGOWS LTD,1011717768,33469,FS430867 Beverly Addai - Poku Delivery of FSA/FSS CoP26 Global Sustainable Food Regulation Conference Hybrid Event - Edinburgh & Virtual,PR25 3UQ,Admin
FOOD STANDARDS AGENCY - Westminster,FOOD STANDARDS AGENCY - Westminster,2022-01-13,EXP - PURCHASE OF GOODS/SERVICES - OTHER ICT COSTS - COMPUTER SOFTWARE,SECURITY & ESTATES,FM SYSTEMS EUROPE LTD,1011717786,46030,FSA Agency wide desk booking solution and lease of sensors for Belfast and Cardiff - Redacted under Section 40 FOI Act,BB1 3NY,Admin
FOOD STANDARDS AGENCY - Westminster,FOOD STANDARDS AGENCY - Westminster,2022-01-13,EXP - AMORTISATION - INTANGIBLE ASSETS,SECURITY & ESTATES,FM SYSTEMS EUROPE LTD,1011717786,15693,FSA Agency wide desk booking solution and lease of sensors for Belfast and Cardiff - Redacted under Section 40 FOI Act,BB1 3NY,Capital
FOOD STANDARDS AGENCY - Westminster,FOOD STANDARDS AGENCY - Westminster,2022-01-13,EXP - PURCHASE OF GOODS/SERVICES - OTHER - PROGRAMME EXPENDITURE,"SCIENCE STRATEGY, CAPABILITY AND RESEARCH",UNIVERSITY OF BATH STUDENTS UNION,1011717789,25262,"Psychologies of food (meat, dairy and sugar)  Evidence Review Redacted under Section 40 FOI Act",BA2 7AY,Admin
FOOD STANDARDS AGENCY - Westminster,FOOD STANDARDS AGENCY - Westminster,2022-01-13,EXP - PURCHASE OF GOODS/SERVICES - OTHER PROFESSIONAL SERVICES,OPERATIONAL DELIVERY,ARCO UK LTD,1011717780,23807,PPE Bulk purchase order funds 11770002606  20/21,HU1 2SJ,Admin
FOOD STANDARDS AGENCY - Westminster,FOOD STANDARDS AGENCY - Westminster,2022-01-14,EXP - CURRENT GRANTS TO LOCAL GOVERNMENT - NNDR,EU Transition - Imports Delivery,ASHFORD BOROUGH COUNCIL,1011717793,51671,Ashford Borough Council - FSA Imports Delivery General Grant Funding - Redacted under Section 40 FOI Act,TN23 1PL,Admin
FOOD STANDARDS AGENCY - Westminster,FOOD STANDARDS AGENCY - Westminster,2022-01-17,EXP - PURCHASE OF GOODS/SERVICES - OTHER - PROGRAMME EXPENDITURE,"SCIENCE STRATEGY, CAPABILITY AND RESEARCH",IMPERIAL COLLEGE,1011717816,183979,"Using NHS data to monitor trends in the occurrence of severe, food-induced allergic reactions",SW7 2AZ,Admin
FOOD STANDARDS AGENCY - Westminster,FOOD STANDARDS AGENCY - Westminster,2022-01-17,EXP - PURCHASE OF GOODS/SERVICES - OTHER - PROGRAMME EXPENDITURE,REGULATORY DELIVERY,WESTMINSTER CITY COUNCIL,1011717809,26341,Funding for Triage of new business Westminster City CouncilRedacted under Section 40 FOI Act FS430854,SW1E 6QP,Admin
FOOD STANDARDS AGENCY - Westminster,FOOD STANDARDS AGENCY - Westminster,2022-01-18,EXP - PURCHASE OF GOODS/SERVICES - OTHER - PROGRAMME EXPENDITURE,SCIENTIFIC METHODS AND LABORATORY POLICY,UK HEALTH SECURITY AGENCY,2011700177,74152,FS516010 - National Reference Laboratory for Microbiology,NW9 5EQ,Admin
FOOD STANDARDS AGENCY - Westminster,FOOD STANDARDS AGENCY - Westminster,2022-01-19,EXP - CURRENT GRANTS TO LOCAL GOVERNMENT - NNDR,EU Transition - Imports Delivery,DOVER DISTRICT COUNCIL,1011717829,34540,Dover Port Health Authority/ Dover District Council - FSA Imports Delivery General Grant Funding Redacted under Section 40 FOI Act,CT16 3PJ,Admin
FOOD STANDARDS AGENCY - Westminster,FOOD STANDARDS AGENCY - Westminster,2022-01-19,EXP - PURCHASE OF GOODS/SERVICES - OTHER - PROGRAMME EXPENDITURE,RISK ASSESSMENT - RESEARCH AND DEVELOPMENT,IPSOS MORI,1011717835,8700,Quantitative consumer survey on labour shortages in food industry - Redacted under Section 40 FOI Act,E1W 1YW,Admin
FOOD STANDARDS AGENCY - Westminster,FOOD STANDARDS AGENCY - Westminster,2022-01-19,EXP - PURCHASE OF GOODS/SERVICES - OTHER - PROGRAMME EXPENDITURE,"SCIENCE STRATEGY, CAPABILITY AND RESEARCH",IPSOS MORI,1011717835,12150,Consumer Insights tracker survey - Redacted under Section 40 FOI Act,E1W 1YW,Admin
FOOD STANDARDS AGENCY - Westminster,FOOD STANDARDS AGENCY - Westminster,2022-01-20,EXP - PURCHASE OF GOODS/SERVICES - OTHER - PROGRAMME EXPENDITURE,DIGITAL,I10 LTD,1011717842,525,FSA728 WP29 Power Apps Support (BC759),NG31 6JL,Admin
FOOD STANDARDS AGENCY - Westminster,FOOD STANDARDS AGENCY - Westminster,2022-01-20,EXP - PURCHASE OF GOODS/SERVICES - OTHER - PROGRAMME EXPENDITURE,DIGITAL,I10 LTD,1011717842,105,UK VAT - UK VAT,NG31 6JL,Admin
FOOD STANDARDS AGENCY - Westminster,FOOD STANDARDS AGENCY - Westminster,2022-01-20,EXP - PURCHASE OF GOODS/SERVICES - OTHER - PROGRAMME EXPENDITURE,DIGITAL,I10 LTD,1011717842,48783,FSA728 - WP039 Front End Rebuild,NG31 6JL,Admin
FOOD STANDARDS AGENCY - Westminster,FOOD STANDARDS AGENCY - Westminster,2022-01-20,EXP - PURCHASE OF GOODS/SERVICES - OTHER - PROGRAMME EXPENDITURE,DIGITAL,I10 LTD,1011717842,9757,UK VAT - UK VAT,NG31 6JL,Admin
FOOD STANDARDS AGENCY - Westminster,FOOD STANDARDS AGENCY - Westminster,2022-01-20,EXP - PURCHASE OF GOODS/SERVICES - OTHER FACILTIES COSTS - SECURITY,"DATA, INFORMATION, GOVERNANCE AND SECURITY",I10 LTD,1011717842,14300,FSA728 WP038 - Security: Launch & Embed (BC763),NG31 6JL,Admin
FOOD STANDARDS AGENCY - Westminster,FOOD STANDARDS AGENCY - Westminster,2022-01-20,EXP - PURCHASE OF GOODS/SERVICES - OTHER FACILTIES COSTS - SECURITY,"DATA, INFORMATION, GOVERNANCE AND SECURITY",I10 LTD,1011717842,2860,UK VAT - UK VAT,NG31 6JL,Admin
FOOD STANDARDS AGENCY - Westminster,FOOD STANDARDS AGENCY - Westminster,2022-01-20,EXP - PURCHASE OF GOODS/SERVICES - OTHER ICT COSTS,"DATA, INFORMATION, GOVERNANCE AND SECURITY",I10 LTD,1011717842,12700,FSA728 WP041 SharePoint Architecture  Wisdom Migration Part A (BC910),NG31 6JL,Admin
FOOD STANDARDS AGENCY - Westminster,FOOD STANDARDS AGENCY - Westminster,2022-01-20,EXP - PURCHASE OF GOODS/SERVICES - OTHER ICT COSTS,"DATA, INFORMATION, GOVERNANCE AND SECURITY",I10 LTD,1011717842,2540,UK VAT - UK VAT,NG31 6JL,Admin
FOOD STANDARDS AGENCY - Westminster,FOOD STANDARDS AGENCY - Westminster,2022-01-20,EXP - PURCHASE OF GOODS/SERVICES - OTHER - PROGRAMME EXPENDITURE,Surveillance,I10 LTD,1011717842,98000,FSA728 WP44 Proof of Concept - Online Food Sale Risk (BC890),NG31 6JL,Admin
FOOD STANDARDS AGENCY - Westminster,FOOD STANDARDS AGENCY - Westminster,2022-01-20,EXP - PURCHASE OF GOODS/SERVICES - OTHER - PROGRAMME EXPENDITURE,Surveillance,I10 LTD,1011717842,19600,UK VAT - UK VAT,NG31 6JL,Admin
FOOD STANDARDS AGENCY - Westminster,FOOD STANDARDS AGENCY - Westminster,2022-01-20,EXP - PURCHASE OF GOODS/SERVICES - SHARED SERV OUTSRCG- CIVIL SERV PENSION ADMIN,FINANCE,LONDON PENSIONS FUND AUTHORITY,1011717851,125000,SOP1-865119-173305-174097-LPFA ERS JAN 22,EC3N 4LP,Admin
FOOD STANDARDS AGENCY - Westminster,FOOD STANDARDS AGENCY - Westminster,2022-01-20,EXP - PURCHASE OF GOODS/SERVICES - OTHER - PROGRAMME EXPENDITURE,RISK ASSESSMENT - RESEARCH AND DEVELOPMENT,IPSOS MORI,1011717852,31335,Food and You 2 Survey  FS430662  Redacted under Section 40 FOI Act,E1W 1YW,Admin
FOOD STANDARDS AGENCY - Westminster,FOOD STANDARDS AGENCY - Westminster,2022-01-20,EXP - PURCHASE OF GOODS/SERVICES - OTHER - PROGRAMME EXPENDITURE,RISK ASSESSMENT - RESEARCH AND DEVELOPMENT,IPSOS MORI,1011717852,41780,Food and You 2 Survey  FS430662  Redacted under Section 40 FOI Act,E1W 1YW,Admin
FOOD STANDARDS AGENCY - Westminster,FOOD STANDARDS AGENCY - Westminster,2022-01-20,EXP - PURCHASE OF GOODS/SERVICES - TELECOMS - TELEPHONE,IT SERVICE DELIVERY,LITTLE FISH UK LTD,1011717846,14209,IT1 Networks Design and Delivery (LAN) (Aug 21-Mar 22),NG1 1LS,Admin
FOOD STANDARDS AGENCY - Westminster,FOOD STANDARDS AGENCY - Westminster,2022-01-20,EXP - PURCHASE OF GOODS/SERV - SUPPORT - IT SUPPORT SERVICES,IT SERVICE DELIVERY,LITTLE FISH UK LTD,1011717846,27530,FS430637 Service Desk 01.09.21 - 31.08.22 (BC695),NG1 1LS,Admin
FOOD STANDARDS AGENCY - Westminster,FOOD STANDARDS AGENCY - Westminster,2022-01-20,EXP - PURCHASE OF GOODS/SERV - SUPPORT - IT SUPPORT SERVICES,IT SERVICE DELIVERY,LITTLE FISH UK LTD,1011717846,5506,UK VAT - UK VAT,NG1 1LS,Admin
FOOD STANDARDS AGENCY - Westminster,FOOD STANDARDS AGENCY - Westminster,2022-01-20,EXP - PURCHASE OF GOODS/SERV - SUPPORT - IT SUPPORT SERVICES,IT SERVICE DELIVERY,LITTLE FISH UK LTD,1011717846,27895,FS430633 Endpoint Management (EPM) (BC695),NG1 1LS,Admin
FOOD STANDARDS AGENCY - Westminster,FOOD STANDARDS AGENCY - Westminster,2022-01-20,EXP - PURCHASE OF GOODS/SERV - SUPPORT - IT SUPPORT SERVICES,IT SERVICE DELIVERY,LITTLE FISH UK LTD,1011717846,5579,UK VAT - UK VAT,NG1 1LS,Admin
FOOD STANDARDS AGENCY - Westminster,FOOD STANDARDS AGENCY - Westminster,2022-01-20,EXP - CURRENT GRANTS TO LOCAL GOVERNMENT - NNDR,EU Transition - Imports Delivery,BRISTOL CITY COUNCIL,1011717850,43925,Bristol City Council - as a new line to PO11770007851 - FSA Imports Delivery General Grant Funding Redacted under Section 40 FOI Act,BS99 7BL,Admin
FOOD STANDARDS AGENCY - Westminster,FOOD STANDARDS AGENCY - Westminster,2022-01-20,EXP - PURCHASE OF GOODS/SERVICES - OTHER - PROGRAMME EXPENDITURE,RISK ASSESSMENT - RESEARCH AND DEVELOPMENT,FERA SCIENCE LIMITED,1011717849,29086,New line to PO11770007193 correcting coding error FS616030National Reference Laboratory for Food Contaminants,YO41 1LZ,Admin
FOOD STANDARDS AGENCY - Westminster,FOOD STANDARDS AGENCY - Westminster,2022-01-24,EXP - SHORT-TERM CONTRACT & AGENCY STAFF - FULL COST - CONTRACT OV COSTS,OPERATIONAL DELIVERY,EVILLE & JONES GB LTD,1011717871,141000,SOP1-866166-173305-174097-VAR1112JAN22,LS15 8ZB,Admin
FOOD STANDARDS AGENCY - Westminster,FOOD STANDARDS AGENCY - Westminster,2022-01-24,EXP - SHORT-TERM CONTRACT & AGENCY STAFF - FULL COST - CONTRACT OV COSTS,OPERATIONAL DELIVERY,EVILLE & JONES GB LTD,1011717871,28200,Variations 11 & 12 Jan 22 payment,LS15 8ZB,Admin
FOOD STANDARDS AGENCY - Westminster,FOOD STANDARDS AGENCY - Westminster,2022-01-25,EXP - PURCHASE OF GOODS/SERVICES - OTHER - PROGRAMME EXPENDITURE,FOOD HYPERSENSITIVITIES,IPSOS MORI,1011717886,24800,Research to understand how large chain food businesses manage allergens and the variation across the sector. Redacted under Section 40 FOI Act FS 430720,E1W 1YW,Admin
FOOD STANDARDS AGENCY - Westminster,FOOD STANDARDS AGENCY - Westminster,2022-01-25,EXP - PURCHASE OF GOODS/SERVICES - OTHER - PROGRAMME EXPENDITURE,"SCIENCE STRATEGY, CAPABILITY AND RESEARCH",IPSOS MORI,1011717886,14497,MPs Survey - Ipsos MORI Survey of MPs and MSs - Requestor Redacted under Section 40 FOI Act,E1W 1YW,Admin
FOOD STANDARDS AGENCY - Westminster,FOOD STANDARDS AGENCY - Westminster,2022-01-25,EXP - PURCHASE OF GOODS/SERVICES - OTHER,ANALYTICS UNIT,THE ANDERSONS CENTRE..,1011717879,23078,FS306009 - Trade reorientation andimplications for high risk foods and regulatory bodies t,LE13 1NW,Admin
FOOD STANDARDS AGENCY - Westminster,FOOD STANDARDS AGENCY - Westminster,2022-01-26,EXP - PURCHASE OF GOODS/SERVICES - OTHER - PROGRAMME EXPENDITURE,"SCIENCE STRATEGY, CAPABILITY AND RESEARCH",UKRI BBSRC ,2011700186,94751,FSA contribution to a joint research funding call with UKRI who are managing the call and distributing the funds. Req Rebecca Gillespie FS900108,SN2 1UH,Admin
FOOD STANDARDS AGENCY - Westminster,FOOD STANDARDS AGENCY - Westminster,2022-01-26,EXP - PURCHASE OF GOODS/SERVICES - OTHER - PROGRAMME EXPENDITURE,SCIENTIFIC METHODS AND LABORATORY POLICY,LGC LTD,1011717898,12303,Harmonised GMO Screening Approach R&D,TW11 0LY,Admin
FOOD STANDARDS AGENCY - Westminster,FOOD STANDARDS AGENCY - Westminster,2022-01-26,EXP - PURCHASE OF GOODS/SERVICES - OTHER - PROGRAMME EXPENDITURE,RISK ASSESSMENT - RESEARCH AND DEVELOPMENT,LGC LTD,1011717898,31434,National Reference Laboratory in Genetically Modified Organisms Redacted under Section 40 FOI Act FS616029,TW11 0LY,Admin
FOOD STANDARDS AGENCY - Westminster,FOOD STANDARDS AGENCY - Westminster,2022-01-26,EXP - PURCHASE OF GOODS/SERVICES - OTHER - PROGRAMME EXPENDITURE,"NOVEL FOODS, GM, RADIOLOGICAL AND FEED ADDITIVES",C E F A S,2011700185,24486,Add a line to PO11770002090  Redacted under Section 40 FOI Act,NR33 0HT,Admin
FOOD STANDARDS AGENCY - Westminster,FOOD STANDARDS AGENCY - Westminster,2022-01-27,EXP - PURCHASE OF GOODS/SERVICES - OTHER - PROGRAMME EXPENDITURE,Surveillance,COGNIZANT WORLDWIDE LTD,1011717905,12240,FSA715 SOW027 FSA Strategic Surveillance Program Data Science Core Team - AI Lead (Oct 21  Dec 21) (BC945),W2 6BD,Admin
FOOD STANDARDS AGENCY - Westminster,FOOD STANDARDS AGENCY - Westminster,2022-01-27,EXP - PURCHASE OF GOODS/SERVICES - OTHER - PROGRAMME EXPENDITURE,Surveillance,COGNIZANT WORLDWIDE LTD,1011717905,2448,UK VAT - UK VAT,W2 6BD,Admin
FOOD STANDARDS AGENCY - Westminster,FOOD STANDARDS AGENCY - Westminster,2022-01-27,EXP - PURCHASE OF GOODS/SERVICES - OTHER - PROGRAMME EXPENDITURE,Surveillance,COGNIZANT WORLDWIDE LTD,1011717905,19950,FSA715 SOW024 FSA Strategic Surveillance Program Business Change Project (Oct 21  Dec 21) (BC945),W2 6BD,Admin
FOOD STANDARDS AGENCY - Westminster,FOOD STANDARDS AGENCY - Westminster,2022-01-27,EXP - PURCHASE OF GOODS/SERVICES - OTHER - PROGRAMME EXPENDITURE,Surveillance,COGNIZANT WORLDWIDE LTD,1011717905,3990,UK VAT - UK VAT,W2 6BD,Admin
FOOD STANDARDS AGENCY - Westminster,FOOD STANDARDS AGENCY - Westminster,2022-01-27,EXP - PURCHASE OF GOODS/SERVICES - OTHER - PROGRAMME EXPENDITURE,Surveillance,COGNIZANT WORLDWIDE LTD,1011717905,19110,FSA715 SOW026 FSA Strategic Surveillance Program Data Science Core Team - Expansion Team (Oct 21  Dec 21) (BC945),W2 6BD,Admin
FOOD STANDARDS AGENCY - Westminster,FOOD STANDARDS AGENCY - Westminster,2022-01-27,EXP - PURCHASE OF GOODS/SERVICES - OTHER - PROGRAMME EXPENDITURE,Surveillance,COGNIZANT WORLDWIDE LTD,1011717905,3822,UK VAT - UK VAT,W2 6BD,Admin
FOOD STANDARDS AGENCY - Westminster,FOOD STANDARDS AGENCY - Westminster,2022-01-27,EXP - PURCHASE OF GOODS/SERVICES - OTHER - PROGRAMME EXPENDITURE,Surveillance,COGNIZANT WORLDWIDE LTD,1011717905,13000,FSA715 SOW028 FSA Strategic Surveillance Program Data Ethics Team (Oct 21  Dec 21) (BC945),W2 6BD,Admin
FOOD STANDARDS AGENCY - Westminster,FOOD STANDARDS AGENCY - Westminster,2022-01-27,EXP - PURCHASE OF GOODS/SERVICES - OTHER - PROGRAMME EXPENDITURE,Surveillance,COGNIZANT WORLDWIDE LTD,1011717905,2600,UK VAT - UK VAT,W2 6BD,Admin
FOOD STANDARDS AGENCY - Westminster,FOOD STANDARDS AGENCY - Westminster,2022-01-27,EXP - PURCHASE OF GOODS/SERVICES - OTHER - PROGRAMME EXPENDITURE,Surveillance,COGNIZANT WORLDWIDE LTD,1011717905,34679,FSA715 SOW025 FSA Strategic Surveillance Program Data Science Core Team (Oct 21  Dec 21) (BC945),W2 6BD,Admin
FOOD STANDARDS AGENCY - Westminster,FOOD STANDARDS AGENCY - Westminster,2022-01-27,EXP - PURCHASE OF GOODS/SERVICES - OTHER - PROGRAMME EXPENDITURE,Surveillance,COGNIZANT WORLDWIDE LTD,1011717905,6936,UK VAT - UK VAT,W2 6BD,Admin
FOOD STANDARDS AGENCY - Westminster,FOOD STANDARDS AGENCY - Westminster,2022-01-27,EXP - PURCHASE OF GOODS/SERVICES - OTHER - PROGRAMME EXPENDITURE,Surveillance,COGNIZANT WORLDWIDE LTD,1011717905,12390,FSA715 SOW029 FSA Strategic Surveillance Program FHRS Enhancement (Nov 21  Dec 21) (BC947),W2 6BD,Admin
FOOD STANDARDS AGENCY - Westminster,FOOD STANDARDS AGENCY - Westminster,2022-01-27,EXP - PURCHASE OF GOODS/SERVICES - OTHER - PROGRAMME EXPENDITURE,Surveillance,COGNIZANT WORLDWIDE LTD,1011717905,2478,UK VAT - UK VAT,W2 6BD,Admin
FOOD STANDARDS AGENCY - Westminster,FOOD STANDARDS AGENCY - Westminster,2022-01-27,EXP - PURCHASE OF GOODS/SERVICES - OTHER - PROGRAMME EXPENDITURE,Surveillance,COGNIZANT WORLDWIDE LTD,1011717905,14250,FSA715 SOW023 FSA Strategic Surveillance Program - Azure Data Migration (Sept 21  Dec 21) (BC947),W2 6BD,Admin
FOOD STANDARDS AGENCY - Westminster,FOOD STANDARDS AGENCY - Westminster,2022-01-27,EXP - PURCHASE OF GOODS/SERVICES - OTHER - PROGRAMME EXPENDITURE,Surveillance,COGNIZANT WORLDWIDE LTD,1011717905,35460,FSA715 SOW023 FSA Strategic Surveillance Program - Azure Data Migration (Sept 21  Dec 21) (BC947),W2 6BD,Admin
FOOD STANDARDS AGENCY - Westminster,FOOD STANDARDS AGENCY - Westminster,2022-01-27,EXP - PURCHASE OF GOODS/SERVICES - OTHER - PROGRAMME EXPENDITURE,Surveillance,COGNIZANT WORLDWIDE LTD,1011717905,2850,UK VAT - UK VAT,W2 6BD,Admin
FOOD STANDARDS AGENCY - Westminster,FOOD STANDARDS AGENCY - Westminster,2022-01-27,EXP - PURCHASE OF GOODS/SERVICES - OTHER - PROGRAMME EXPENDITURE,Surveillance,COGNIZANT WORLDWIDE LTD,1011717905,7092,UK VAT - UK VAT,W2 6BD,Admin
FOOD STANDARDS AGENCY - Westminster,FOOD STANDARDS AGENCY - Westminster,2022-01-28,EXP - PURCHASE OF GOODS/SERVICES - OTHER PROFESSIONAL SERVICES,FSA BOARD,JO CLIFT CONSULTING LTD,1011717911,24000,Redacted under Section 40 FOI Act External consultant to conduct effectiveness Review of FSA Board,E17 3QW,Admin
FOOD STANDARDS AGENCY - Westminster,FOOD STANDARDS AGENCY - Westminster,2022-01-31,EXP - PURCHASE OF GOODS/SERVICES - OTHER - PROGRAMME EXPENDITURE,DIGITAL,CABINET OFFICE,2011700188,1570,FS103002: GOV.UK Notify Bulk PO Redacted under Section 40 FOI Act,SW1A 2AS,Admin
FOOD STANDARDS AGENCY - Westminster,FOOD STANDARDS AGENCY - Westminster,2022-01-31,EXP - PURCHASE OF GOODS/SERVICES - OTHER - PROGRAMME EXPENDITURE,DIGITAL,CABINET OFFICE,2011700188,502,FS103002: GOV.UK Notify service for sending text messages and email notifications to food.gov.uk subscribers Redacted under Section 40 FOI Act,SW1A 2AS,Admin
FOOD STANDARDS AGENCY - Westminster,FOOD STANDARDS AGENCY - Westminster,2022-01-31,EXP - SHORT-TERM CONTRACT & AGENCY STAFF - FULL COST,"SCIENCE STRATEGY, CAPABILITY AND RESEARCH",CABINET OFFICE,2011700188,36903,New Line PO11770006343Payment of charges for Science and Engineering Fast streamers Redacted under Section 40 FOI Act,SW1A 2AS,Admin
